{"text_format":"1","workbook":"xlsx","n_sheets":6,"sheets":["Басты","Жеке мәлімет","Сапар деректері","Қонақ үй және әрекеттер","Көлік жалға алу","Төтенше жағдай деректері"],"not_rendered":{"charts":0,"images":19,"macros":0,"external_links":0,"defined_names":10,"comments":0,"pivot_tables":0},"unopened":[],"bounds":{"document_bytes":16777216,"sheet_cells":100000,"rows_first":2000,"rows_last":500,"rows_between":2000,"halvings":0,"cell_chars":16384,"cell_head_chars":4096},"cells_cut":0,"cells_raw":0,"read":"whole","date_system":"1900"}

{"sheet":"Басты","index":0,"n_rows":34,"n_cols":22,"rows_kept":34,"cut":false,"hidden":false,"merged":[[33,21,33,23],[32,21,32,23],[32,16,32,18],[33,16,33,18],[32,1,32,3],[33,1,33,3],[32,6,32,8],[33,6,33,8],[32,11,32,13],[33,11,33,13]]}
[]
[]
[]
[]
[]
[]
[]
[]
[]
[]
[]
[]
[]
[]
[]
[]
[]
[]
[]
[]
[]
[]
[]
[]
[]
[]
[]
[]
[]
[]
[]
[]
[null,{"$f":"PersonalEntry/PersonalCount","v":1},null,null,null,null,{"$f":"TravelEntry/TravelCount","v":0.65},null,null,null,null,{"$f":"HotelEntry/HotelCount","v":0.53846153846153844},null,null,null,null,{"$f":"IF('Көлік жалға алу'!D4=\"Иә\",CarRentalEntry/CarRentalCount,1)","v":0.2857142857142857},null,null,null,null,{"$f":"EmergencyEntry/EmergencyCount","v":0.625}]
[null,{"$f":"TEXT(B33,\"0% \"\"толық\"\"\")","v":"100% толық"},null,null,null,null,{"$f":"TEXT(G33,\"0% \"\"толық\"\"\")","v":"65% толық"},null,null,null,null,{"$f":"TEXT(L33,\"0% \"\"толық\"\"\")","v":"54% толық"},null,null,null,null,{"$f":"TEXT(Q33,\"0% \"\"толық\"\"\")","v":"29% толық"},null,null,null,null,{"$f":"TEXT(V33,\"0% \"\"толық\"\"\")","v":"63% толық"}]

{"sheet":"Жеке мәлімет","index":1,"n_rows":11,"n_cols":5,"rows_kept":11,"cut":false,"hidden":false,"merged":[[17,1,17,4],[4,3,5,3],[7,3,8,3],[7,4,8,4],[4,4,5,4],[4,2,5,2],[7,2,8,2]]}
[]
[]
[{"$f":"IF(COUNTA(B4:B8)<1,\"*\",\"\")","v":""},"Толық аты-жөні & лақап аттары",{"$f":"IF(E3=\"\",1,\"\")","v":""},"Үй мекен-жайы","Оңтүстік бесінші көшесі, 987, Колумбус, Теннесси 01234"]
[null,"Мишель Александр"]
[null,"Миккилли Александр",{"$f":"IF(E5=\"\",1,\"\")","v":""},"Үй телефоны",3455550123]
[null,"Син П. Александр"]
[]
[null,null,{"$f":"IF((E8=0)+(E8=\"\"),1,\"\")","v":""},"Ұялы телефондары",3455550124]
[]
[]
[{"$f":"PersonalEntry","v":3},{"$f":"IF(A11<>PersonalCount,\"Маңызды мәліметтер жоқ\",\"Маңызды мәліметтер толығымен\")","v":"Маңызды мәліметтер толығымен"}]

{"sheet":"Сапар деректері","index":2,"n_rows":18,"n_cols":6,"rows_kept":18,"cut":false,"hidden":false,"merged":[[23,1,23,5]]}
[]
[]
[null,"Ұшу мәліметтері",null,null,"Қайтып келу мәліметтері"]
[{"$f":"IF(C4=\"\",1,\"\")","v":""},"Күні",{"$f":"TODAY()+45","v":"2013-02-21"},{"$f":"IF(F4=\"\",1,\"\")","v":""},"Күні",{"$f":"TODAY()+51","v":"2013-02-27"}]
[{"$f":"IF(C5=\"\",1,\"\")","v":""},"Әуе жолы","Blue Yonder Airlines","","Әуе жолы","Blue Yonder Airlines"]
[{"$f":"IF(C6=\"\",1,\"\")","v":""},"Рейс нөмірі","WS192",1,"Рейс нөмірі"]
[{"$f":"IF(C7=\"\",1,\"\")","v":""},"Қайдан","Колумбус","","Қайдан","Сиэтл"]
[{"$f":"IF(C8=\"\",1,\"\")","v":""},"Ұшу уақыты","12:30:00",1,"Ұшу уақыты"]
[null,"Ұшу терминалы/шығу есігі",null,1,"Ұшу терминалы/шығу есігі"]
[{"$f":"IF(C10=\"\",1,\"\")","v":""},"Қайда","Сиэтл",1,"Қайда"]
[{"$f":"IF(C11=\"\",1,\"\")","v":""},"Келу уақыты","12:32:00",1,"Келу уақыты"]
[null,"Ұшу ұзақтығы","6 сағат",null,"Ұшу ұзақтығы"]
[{"$f":"IF(C13=\"\",1,\"\")","v":""},"Орындар саны","A1, A2,A3",{"$f":"IF(F13=\"\",1,\"\")","v":1},"Орындар саны"]
[{"$f":"IF(C14=\"\",1,\"\")","v":""},"Растау нөмірі","Бірдей",{"$f":"IF(F14=\"\",1,\"\")","v":1},"Растау нөмірі"]
[{"$f":"IF(C15=\"\",1,\"\")","v":""},"Тағам","Шектеулер жоқ",null,"Тағам"]
[null,"Әуе жолы телефон нөмірі",1235550234,null,"Әуе жолы телефон нөмірі",1235550234]
[]
[{"$f":"TravelEntry","v":13},{"$f":"IF(A18<>TravelCount,\"Маңызды мәліметтер жоқ\",\"Маңызды мәліметтер толығымен\")","v":"Маңызды мәліметтер жоқ"}]

{"sheet":"Қонақ үй және әрекеттер","index":3,"n_rows":15,"n_cols":7,"rows_kept":15,"cut":false,"hidden":false,"merged":[[21,1,21,6]]}
[]
[]
[null,"Қонақ үйде тоқтау / Тұратын орын деректері",null,null,null,"Демалыс әрекеттері туралы ақпарат"]
[{"$f":"IF(C4=\"\",1,\"\")","v":""},"Алдын ала тапсырыс беру күні",{"$f":"TODAY()+45","v":"2013-02-21"},null,null,"1-әрекет","Шаңғы тебу"]
["","Қонақ үй атауы","Alpine Ski House",null,{"$f":"IF(AND($G$4<>\"\",G5=\"\"),1,\"\")","v":1},"Күні/уақыты"]
["","Қонақ үй мекенжайы","Майн көшесі, 789",null,{"$f":"IF(AND($G$4<>\"\",G6=\"\"),1,\"\")","v":1},"Алдын ала тапсырыс беру күні"]
["","Қонақ үй телефоны","Сиэтл",null,{"$f":"IF(AND($G$4<>\"\",G7=\"\"),1,\"\")","v":1},"Растау нөмірі"]
["","Келу күні/уақыты",{"$f":"TODAY()+45.5","v":"2013-02-21T12:00:00"},null,null,"2-әрекет","Coho Vineyard және Шарап фабрикасы"]
["","Кету күні/уақыты",{"$f":"TODAY()+50.5","v":"2013-02-26T12:00:00"},null,{"$f":"IF(AND($G$8<>\"\",G9=\"\"),1,\"\")","v":1},"Күні/уақыты"]
["","Растау нөмірі","CJ1234567",null,{"$f":"IF(AND($G$8<>\"\",G10=\"\"),1,\"\")","v":1},"Алдын ала тапсырыс беру күні"]
[null,null,null,null,{"$f":"IF(AND($G$8<>\"\",G11=\"\"),1,\"\")","v":1},"Растау нөмірі"]
[{"$f":"HotelEntry","v":7},{"$f":"IF(A12<>HotelCount,\"Маңызды мәліметтер жоқ\",\"Маңызды мәліметтер толығымен\")","v":"Маңызды мәліметтер жоқ"},null,null,null,"3--әрекет"]
[null,null,null,null,{"$f":"IF(AND($G$12<>\"\",G13=\"\"),1,\"\")","v":""},"Күні/уақыты"]
[null,null,null,null,{"$f":"IF(AND($G$12<>\"\",G14=\"\"),1,\"\")","v":""},"Алдын ала тапсырыс беру күні"]
[null,null,null,null,{"$f":"IF(AND($G$12<>\"\",G15=\"\"),1,\"\")","v":""},"Растау нөмірі"]

{"sheet":"Көлік жалға алу","index":4,"n_rows":13,"n_cols":4,"rows_kept":13,"cut":false,"hidden":false,"merged":[[18,0,18,4]]}
[]
[]
[null,null,"Көлікті жалға алу ақпараты"]
[null,null,"Көлік жалға алынған ба?","Иә"]
[null,{"$f":"IF(AND($D$4=\"Иә\",D5=\"\"),1,\"\")","v":""},"Алдын ала тапсырыс беру күні",{"$f":"TODAY()+45","v":"2013-02-21"}]
[null,1,"Жалға беруші компания"]
[null,1,"Алу күні/уақыты"]
[null,1,"Қайтару күні/уақыты"]
[null,1,"Растау нөмірі"]
[null,"","Көлік түрі","Экономика"]
[null,1,"Телефон нөмірі"]
[]
[null,{"$f":"CarRentalEntry","v":2},{"$f":"IF(B13<>CarRentalCount,\"Маңызды мәліметтер жоқ\",\"Маңызды мәліметтер толығымен\")","v":"Маңызды мәліметтер жоқ"}]

{"sheet":"Төтенше жағдай деректері","index":5,"n_rows":11,"n_cols":6,"rows_kept":11,"cut":false,"hidden":false,"merged":[[16,1,16,6],[7,6,8,6],[5,6,6,6],[3,6,4,6],[3,4,4,4],[5,4,6,4],[3,5,4,5],[5,5,6,5],[7,5,8,5]]}
[]
[]
[null,"Сақтандыру туралы ақпарат",null,null,null,"Төтенше контактілер жөнінде ақпарат"]
[{"$f":"IF(C4=\"\",1,\"\")","v":""},"Сақтандырушы компания","Сақтандыру компаниясы",null,{"$f":"IF(G4=\"\",1,\"\")","v":1},"Аты / Қарым-қатынасы / Телефоны"]
["","Телефон нөмірі",1235550567]
["","Қандай апат түрлерінен сақтайды","1900-01-05",null,{"$f":"IF(G6=\"\",1,\"\")","v":1},"Аты / Қарым-қатынасы / Телефоны"]
["","Растау нөмірі","1900-01-05"]
["","Төлем күні",{"$f":"TODAY()","v":"2013-01-07"},null,null,"Аты / Қарым-қатынасы / Телефоны"]
[1,"Қамтитын уақыты"]
[]
[{"$f":"EmergencyEntry","v":5},{"$f":"IF(A11<>EmergencyCount,\"Маңызды мәліметтер жоқ\",\"Маңызды мәліметтер толығымен\")","v":"Маңызды мәліметтер жоқ"}]